Cogmind - Beta 13 @@@ ROGUE MODE // 2024.04.04 @ 01:42:02 Player: Osku Result: Destroyed by H-55 Commando with Gauss Rifle Performance ------------- Evolutions (2) 1000 Regions Visited (5) 1000 Robots Destroyed (50) 250 Value Destroyed (1085) 1085 Prototype IDs (0) 0 Alien Tech Used (0) 0 Bonus (-203) -203 TOTAL SCORE: 3132 Bonus ------- High Alert Combat Kills 14 Friendly Fire -217 Cogmind --------- Core Integrity 0/550 Matter 300/300 Energy 100/100 System Corruption 2% Temperature Cool (0) Movement Core (350) Ox6 Location -8/Materials Parts ------- > --- POWER (1) -------- (None) > --- PROPULSION (2) --- (None) > --- UTILITY (4) ------ Large Storage Unit > --- WEAPON (4) ------- (None) > --- INVENTORY (15) --- Ion Engine Light Nuclear Core Peak State ------------ > --- POWER ------------ Light Nuclear Core > --- PROPULSION ------- Compact Wheel Compact Wheel > --- UTILITY ---------- Targeting Computer Improved Propulsion Shielding > --- WEAPON ----------- Heavy Particle Cannon Grenade Launcher Grenade Launcher Rocket Launcher > --- INVENTORY -------- Ion Engine [Rating: 16] Favorites ----------- Power Ion Engine Engine Ion Engine Power Core Light Nuclear Core Propulsion Compact Wheel Leg Aluminum Leg Wheel Compact Wheel Flight Unit Flight Unit Utility Improved Propulsion Shielding Device Heat Sink Storage Medium Matter Pod Processor Targeting Computer Protection Improved Propulsion Shielding Weapon Grenade Launcher Energy Gun Small Laser Energy Cannon Heavy Particle Cannon Ballistic Gun Assault Rifle Ballistic Cannon Light Cannon Launcher Grenade Launcher Slashing Weapon Mining Claw Build | -11 -10 -10 -9 -9 -8 ------- Run | Yrd Mat Min Mat Min Mat Slots Evolved 4 | . . . 2 . 2 Power . | . . . . . . Propulsion . | . . . . . . Utility 2 | . . . . . 2 Weapon 2 | . . . 2 . . Parts Attached 46 | 7 25 4 2 3 5 Power 8 | 1 4 1 . 1 1 Engine 6 | 1 4 . . 1 . Core 2 | . . 1 . . 1 Reactor . | . . . . . . Propulsion 11 | 2 8 . . . 1 Treads . | . . . . . . Leg 5 | 2 2 . . . 1 Wheel 4 | . 4 . . . . Hover . | . . . . . . Flight 2 | . 2 . . . . Utility 10 | 1 6 1 . . 2 Device 3 | . 2 . . . 1 Storage 3 | 1 1 . . . 1 Processor 1 | . 1 . . . . Hackware . | . . . . . . Protection 3 | . 2 1 . . . Artifact . | . . . . . . Weapon 17 | 3 7 2 2 2 1 Energy Gun 5 | 1 3 . . 1 . Energy Cannon 2 | . . 1 . 1 . Ballistic Gun 3 | 2 1 . . . . Ballistic Cannon 1 | . . . . . 1 Launcher 5 | . 2 1 2 . . Special Weapon . | . . . . . . Impact Weapon . | . . . . . . Slashing Weapon 1 | . 1 . . . . Piercing Weapon . | . . . . . . Special Melee Weapon . | . . . . . . Unidentified Prototypes . | . . . . . . Parts Lost 16 | . 5 . 4 1 6 Power 3 | . 1 . 1 . 1 Propulsion 3 | . 2 . . . 1 Utility 2 | . . . 1 . 1 Weapon 8 | . 2 . 2 1 3 Highest Loss Streak 4 | . 3 . 3 4 4 To Critical Strikes . | . . . . . . Average Slot Usage (%) 81 | . 87 100 79 65 58 Engine 9 | . 13 8 . 11 4 Core 2 | . . 6 9 . 1 Leg 4 | . 7 . . . 3 Wheel 16 | . 11 28 22 22 13 Device 3 | . 7 . . . 3 Storage 5 | . 8 . . . 7 Processor 4 | . 3 14 10 . . Protection 9 | . 8 14 11 11 7 Energy Gun 7 | . 10 3 . 10 7 Energy Cannon 3 | . . 6 8 11 3 Ballistic Gun 4 | . 8 . . . . Launcher 8 | . 7 18 16 . . Naked Turns . | . . . . . . Heaviest Build 39 | 9 16 18 23 16 39 Greatest Support 32 | 20 32 32 32 32 32 Greatest Overweight (x) 6 | . 3 . . . 6 Average Overweight (x) . | . . . . . 1 Largest Inventory Capacity 15 | 5 8 5 5 5 15 Average Capacity 6 | 5 5 5 5 5 13 Most Carried 5 | 5 5 5 4 2 4 Average Carried 2 | 3 2 3 1 . 1 Final Capacity 15 | 5 5 5 5 5 15 Final Carried 4 | 4 4 3 2 1 2 Class Distribution -------------------- 60% | Mutant 31% | Scavenger-Mutant 5% | Gunner 3% | Scavenger-Tank Dominant Class ---------------- Mutant | -10/Materials Mutant | -10/Mines Mutant | -9/Materials Scavenger-Mutant | -9/Mines Scavenger-Mutant | -8/Materials Resources | -11 -10 -10 -9 -9 -8 ----------- Run | Yrd Mat Min Mat Min Mat Matter Collected 1252 | 356 406 29 195 65 201 Remotely . | . . . . . . Salvage Created 1213 | 49 512 . 324 65 263 Parts 87 | 3 46 . 21 3 14 Haulers Intercepted . | . . . . . . Recyclers Shooed 3 | . 2 . 1 . . Parts Field Recycled . | . . . . . . Retrieved Matter . | . . . . . . Parts Self-Destructed . | . . . . . . Prevented . | . . . . . . Kills | -11 -10 -10 -9 -9 -8 ------- Run | Yrd Mat Min Mat Min Mat Combat Hostiles Destroyed 33 | 1 11 . 12 2 7 Guns 12 | 1 8 . . . 3 Cannons 6 | . . . . 2 4 AOE 15 | . 3 . 12 . . Classes Destroyed 9 | 2 5 . 2 . . Worker 1 | 1 . . . . . Builder 4 | . 3 . 1 . . Tunneler 1 | . . . 1 . . Recycler 5 | . 2 . 2 . 1 Operator 2 | . 1 . 1 . . Watcher 3 | . 3 . . . . Swarmer 15 | . 5 . 7 . 3 Grunt 17 | 1 6 . 4 2 4 Sentry 1 | . . . 1 . . Thug 1 | . . . 1 . . Best Kill Streak 10 | 2 6 . 10 3 3 Combat Bots Only 8 | 1 4 . 8 2 2 Max Kills in Single Turn 4 | 1 3 . 4 1 1 Gunslinging . | . . . . . . Exploded 3 | . 3 . 3 . . Melee . | . . . . . . Uniques/NPCs Destroyed . | . . . . . . Combat | -11 -10 -10 -9 -9 -8 -------- Run | Yrd Mat Min Mat Min Mat Hostile Shots Fired 238 | 2 88 . 56 9 83 Missed 65 | 1 29 . 14 2 19 Damage Taken 2179 | 11 600 . 521 93 954 Core 768 | . 69 . 106 43 550 Absorbed by Shields . | . . . . . . Redirected to Shielding 101 | . . . 27 . 74 Core Remaining (%) 78 | 100 . 72 . 62 . Volleys Fired 112 | 3 54 . 22 4 29 Largest 4 | 2 2 . 4 1 3 Hottest 175 | 40 70 . 168 75 175 Shots Fired 188 | 6 91 . 37 4 50 Gun 111 | 6 83 . . . 22 Cannon 47 | . . . 16 3 28 Launcher 30 | . 8 . 21 1 . Special . | . . . . . . Kinetic 85 | 6 55 . . . 24 Thermal 69 | . 24 . 16 3 26 Explosive 30 | . 8 . 21 1 . Electromagnetic 4 | . 4 . . . . Robot Hit Streak 9 | 3 7 . 5 2 9 Robot Miss Streak 7 | 1 5 . 7 1 4 Penetration Max . | . . . . . . Secondary Targets 1 | . 1 . . . . Max Gunslinging Chain 1 | . 1 . . . . Shots Hit Robots 111 | 4 56 . 18 3 30 Core Hits 86 | 3 33 . 31 3 16 Critical Kills . | . . . . . . Critical Parts Destroyed . | . . . . . . Critical Strikes 3 | . . . . . 3 Burn 2 | . . . . . 2 Blast 1 | . . . . . 1 Melee Attacks 3 | . 3 . . . . Impact . | . . . . . . Slashing 3 | . 3 . . . . Piercing . | . . . . . . Sneak Attacks 2 | . 2 . . . . Combat Hostiles . | . . . . . . Follow-up Attacks . | . . . . . . Damage Inflicted 3075 | 45 1047 . 1342 108 533 Guns 927 | 45 665 . . . 217 Cannons 515 | . . . 150 50 315 Explosions 1534 | . 284 . 1192 58 . Melee 94 | . 94 . . . . Ramming 5 | . 4 . . . 1 Kinetic 770 | 45 485 . . . 240 Thermal 660 | . 168 . 150 50 292 Explosive 1476 | . 284 . 1134 58 . Electromagnetic 70 | . 12 . 58 . . Impact . | . . . . . . Slashing 94 | . 94 . . . . Piercing . | . . . . . . Highest Corruption 2 | . . . . . 2 Average Corruption 2 | . . . . . 2 Corruption Purged . | . . . . . . Corruption Blocked . | . . . . . . Overload Shots . | . . . . . . Overflow Damage 30 | . . . 30 . . Projectiles 5 | . . . 5 . . Explosions 25 | . . . 25 . . Melee . | . . . . . . Knockbacks 2 | . . . . . 2 Impact . | . . . . . . Kinetic 2 | . . . . . 2 Secondary . | . . . . . . Self-Inflicted Damage 150 | . . . 136 14 . Shots 5 | . . . 4 1 . Rammed 3 | . . . . . 3 Targets Rammed 4 | . 1 . . . 3 Kicked 1 | . 1 . . . . Crushed . | . . . . . . Highest Temperature 349 | . 24 . 266 102 349 Average Temperature 92 | . 8 . 90 49 145 Received Heat Transfer 744 | 6 240 . 63 48 387 Effects 2 | . . . 1 . 1 Energy Bleed 1 | . . . 1 . . Interference 1 | . . . . . 1 Siege Activations . | . . . . . . Robots Corrupted . | . . . . . . Combat Hostiles . | . . . . . . Parts Fried . | . . . . . . Impact Corruptions . | . . . . . . Robots Melted . | . . . . . . Combat Hostiles . | . . . . . . Parts Melted 1 | . 1 . . . . Heat Transferred 1448 | . 375 . 222 74 777 Parts Sabotaged . | . . . . . . Parts Stolen . | . . . . . . Parts Stripped . | . . . . . . Power Chain Reactions . | . . . . . . Alert | -11 -10 -10 -9 -9 -8 ------- Run | Yrd Mat Min Mat Min Mat Peak Influence 491 | 25 243 43 491 243 310 Initial 190 | . 16 43 16 190 94 Average 128 | 16 117 43 254 241 159 Maximum Alert Level 2 | . 1 . 2 1 1 Low Security (%) 74 | 100 92 100 28 2 70 Level 1 23 | . 7 . 54 97 29 Level 2 1 | . . . 16 . . Level 3 . | . . . . . . Level 4 . | . . . . . . Level 5 . | . . . . . . High Security . | . . . . . . Max Security . | . . . . . . Squads Dispatched 4 | . 1 1 2 . . Investigation 2 | . 1 1 . . . Extermination . | . . . . . . Reinforcement 2 | . . . 2 . . Assault . | . . . . . . Garrison . | . . . . . . Intercept . | . . . . . . Searches Triggered . | . . . . . . Construction Impeded 1 | . . . 1 . . Haulers Reinforced . | . . . . . . Active Scanning Responses . | . . . . . . Cargo Convoy Interrupts . | . . . . . . Stealth | -11 -10 -10 -9 -9 -8 --------- Run | Yrd Mat Min Mat Min Mat Distress Signals 5 | . 2 . 1 . 2 Communications Jammed . | . . . . . . Distress Signals . | . . . . . . Times Spotted 56 | 1 18 . 17 2 18 Peak Tracking Total 7 | 1 5 . 5 2 7 Tactical Retreats 4 | . 1 . . . 3 Traps | -11 -10 -10 -9 -9 -8 ------- Run | Yrd Mat Min Mat Min Mat Traps Triggered 2 | . 1 . . . 1 Indirectly . | . . . . . . Trap Hack Attempts . | . . . . . . Triggered . | . . . . . . Disarmed . | . . . . . . Reprogrammed . | . . . . . . Reused . | . . . . . . Traps Extracted . | . . . . . . Installed . | . . . . . . Triggered . | . . . . . . Machines | -11 -10 -10 -9 -9 -8 ---------- Run | Yrd Mat Min Mat Min Mat Machines Disabled 10 | . 4 . 6 . . Max in Single Turn 2 | . 1 . 2 . . Machines Repaired . | . . . . . . Machines Dismantled . | . . . . . . Machines Sabotaged . | . . . . . . Overloaded Fab Kills . | . . . . . . Hacking | -11 -10 -10 -9 -9 -8 --------- Run | Yrd Mat Min Mat Min Mat Machines Accessed 7 | . 4 1 2 . . Terminals 5 | . 4 . 1 . . Fabricators . | . . . . . . Repair Stations . | . . . . . . Recycling Units . | . . . . . . Scanalyzers 1 | . . . 1 . . Garrison Access . | . . . . . . Total Hacks 13 | . 6 1 6 . . Successful 9 | . 3 1 5 . . Failed 4 | . 3 . 1 . . Catastrophic 1 | . 1 . . . . Database Lockouts . | . . . . . . Manual . | . . . . . . Terminals 9 | . 6 . 3 . . Fabricators . | . . . . . . Repair Stations . | . . . . . . Recycling Units . | . . . . . . Scanalyzers 3 | . . . 3 . . Garrison Access . | . . . . . . Terminal Hacks 7 | . 3 1 3 . . Record 4 | . 2 . 2 . . Open Door 1 | . . 1 . . . Alert Level 2 | . 1 . 1 . . Fabricator Hacks . | . . . . . . Repair Station Hacks . | . . . . . . Recycling Unit Hacks . | . . . . . . Scanalyzer 2 | . . . 2 . . Insert Component 1 | . . . 1 . . Analyze 1 | . . . 1 . . Garrison Access Hacks . | . . . . . . Unauthorized Hacks . | . . . . . . Terminals . | . . . . . . Fabricators . | . . . . . . Repair Stations . | . . . . . . Recycling Units . | . . . . . . Scanalyzers . | . . . . . . Garrison Access . | . . . . . . Data Cores Recovered 1 | . 1 . . . . Used 1 | . 1 . . . . Hacking Detections 4 | . 2 . 2 . . Full Trace Events . | . . . . . . Feedback Events . | . . . . . . Feedback Blocked . | . . . . . . Robot Schematics Acquired . | . . . . . . Robots Built . | . . . . . . Authchips . | . . . . . . Time . | . . . . . . Total Robot Build Rating . | . . . . . . Part Schematics Acquired 1 | . . . 1 . . Parts Built . | . . . . . . Authchips . | . . . . . . Time . | . . . . . . Total Part Build Rating . | . . . . . . Parts Repaired . | . . . . . . Time . | . . . . . . Parts Recycled . | . . . . . . Recycled Matter . | . . . . . . Retrieved Matter . | . . . . . . Retrieved Components . | . . . . . . Parts Scanalyzed 1 | . . . 1 . . Part Schematics Acquired 1 | . . . 1 . . Parts Damaged . | . . . . . . Bothacking | -11 -10 -10 -9 -9 -8 ------------ Run | Yrd Mat Min Mat Min Mat Used RIF Installer . | . . . . . . Robots Hacked . | . . . . . . Non-combat . | . . . . . . Combat . | . . . . . . Robot Hacks Applied . | . . . . . . Relay Couplers Released . | . . . . . . Fabnet Peak Effective % . | . . . . . . Robots Rewired . | . . . . . . Allies Hacked . | . . . . . . Hacks Repelled . | . . . . . . Allies | -11 -10 -10 -9 -9 -8 -------- Run | Yrd Mat Min Mat Min Mat Total Allies . | . . . . . . Largest Group . | . . . . . . Highest-Rated Group . | . . . . . . Highest-Rated Ally . | . . . . . . Total Orders . | . . . . . . Ally Attacks . | . . . . . . Total Damage . | . . . . . . Kills . | . . . . . . Allies Corrupted . | . . . . . . Allies Melted . | . . . . . . Intel | -11 -10 -10 -9 -9 -8 ------- Run | Yrd Mat Min Mat Min Mat Robot Analysis Total . | . . . . . . Derelict Logs Recovered 1 | . . 1 . . . Drone Launches . | . . . . . . Drone Recoveries . | . . . . . . Exploration | -11 -10 -10 -9 -9 -8 ------------- Run | Yrd Mat Min Mat Min Mat Turns Passed 2251 | 337 963 216 256 241 238 Spaces Moved 1443 | 155 565 201 197 229 96 Core 61 | 45 14 . . . 2 Treads . | . . . . . . Legs 334 | 110 206 . . . 18 Wheels 1048 | . 345 201 197 229 76 Hover . | . . . . . . Flight . | . . . . . . Fastest Speed 50 | 50 80 100 100 100 100 Average Speed 114 | 99 129 100 100 100 146 Slowest Speed 350 | 120 200 100 100 100 350 Overloaded Moves . | . . . . . . Propulsion Burnouts . | . . . . . . Robots Hopped . | . . . . . . Cave-ins Triggered . | . . . . . . Exploration Rate (%) 35 | 10 86 49 21 42 7 Regions Visited 5 Branch Regions 2 Pre-discovered Areas . | . . . . . . Known Exits Taken 1 | . . . . 1 . Unknown Exits Taken 4 | 1 1 1 1 . . Scrap Searched 1 | . . 1 . . . Spaces Dug . | . . . . . . Terrain Destroyed 195 | . 51 . 129 14 1 Melee . | . . . . . . Projectile 8 | . . . 6 1 1 AOE 187 | . 51 . 123 13 . Terrain Rammed . | . . . . . . Walls Destroyed . | . . . . . . Machines Disabled . | . . . . . . Actions | -11 -10 -10 -9 -9 -8 --------- Run | Yrd Mat Min Mat Min Mat Total 1864 | 332 711 220 223 237 141 Wait 172 | 156 16 . . . . Move 1438 | 154 564 200 196 228 96 Hop . | . . . . . . Pick Up 50 | 11 23 7 1 2 6 Fast Attach 1 | . 1 . . . . Attach 43 | 7 23 4 2 3 4 Detach 9 | . 7 1 1 . . Swap 2 | . 1 . . . 1 Drop 30 | 1 18 8 1 . 2 Fire 112 | 3 54 . 22 4 29 Melee 3 | . 3 . . . . Ram 3 | . . . . . 3 Kick 1 | . 1 . . . . Crush . | . . . . . . Escape Stasis . | . . . . . . Rewire . | . . . . . . Trap . | . . . . . . Miscellaneous . | . . . . . . Route ------- -11/Scrapyard -10/Materials (discovered 3 exits: *Mat x2 / *Min) -10/Mines -9/Materials (discovered 2 exits: Mat / [*Min]) -9/Mines -8/Materials History --------- Turn | Location | Event 2 | -11/Scrapyard | Met Revision 17 95 | -11/Scrapyard | Discovered new exit (range 8) 338 | -11/Scrapyard | Entered Materials 339 | -10/Materials | Build established: Mutant 534 | -10/Materials | Lost 3 parts (1p1n1w) 753 | -10/Materials | Discovered new exit (range 10) 817 | -10/Materials | Build established: Scavenger-Mutant 1017 | -10/Materials | Discovered new exit (range 7) 1059 | -10/Materials | Discovered new exit (range 5) 1119 | -10/Materials | Build established: Mutant 1301 | -10/Materials | Entered Mines 1322 | -10/Mines | Met a Derelict bent on vengeance 1354 | -10/Mines | Received a Rocket Launcher from a helpful Derelict 1405 | -10/Mines | Met a Derelict shopkeep closing up shop 1411 | -10/Mines | Learned location of 1 exit from Materials 1513 | -10/Mines | Discovered new exit (range 3) 1517 | -10/Mines | Entered Materials 1517 | -9/Materials | Evolved 2 slots: Weapon x2 1518 | -9/Materials | Identified exit to Materials 1705 | -9/Materials | Discovered new exit (range 7) 1762 | -9/Materials | Destroyed 8 combat bots 1773 | -9/Materials | Entered Mines 1774 | -9/Mines | Assembled infested the area 1808 | -9/Mines | Lost 4 parts (1p1u2w) 2003 | -9/Mines | Discovered exit to Materials (range 8) 2014 | -9/Mines | Entered Materials 2014 | -8/Materials | Evolved 2 slots: Utility x2 2229 | -8/Materials | Core integrity fell below 50% 2248 | -8/Materials | Core integrity fell below 20% 2252 | -8/Materials | Destroyed by H-55 Commando with Gauss Rifle Last Messages --------------- Particle Gun destroyed. K-01 Serf collects debris. Penetrated by Slug. Com. Wheel destroyed. U-05 Engineer destroyed. K-01 Serf collects debris. Triggered Blade Trap. Massive razor-sharp blades shoot up from within the floor. Imp. Heat Sink severed. Aluminum Leg severed. Slammed into G-47 Trooper. Slug penetrates Wall. Slammed into G-47 Trooper. Destabilizing: System corrupted (+2). K-01 Serf collects debris. K-01 Serf cleans the Processing Tank. Slammed into G-50 Soldier. K-01 Serf cleans the Terminal. [Achievement: First Step to Greatness] Map ----- +----------------------------------------------------+ | | | | | | | | | | | | | | | | | | | | | | | | | | | | | | | | | | | | | | | | | ######???????????????????????#####???????????????? | | #????????##########???? #???????????????? | | #????????# #?? "" #???????????????? | | #????????# *** ### "T #???????????????? | | #????????# ** =gg/k"" #???????????????? | | #????????# ** %#@# #???????????????? | | ####################h#?? #???????????????? | | + [*=!%u#????###???????????????? | | ! ####################u#??????????????????????? | | #??????????????????#m#??????????????????????? | | #+############?????????=%u#??????????????????????? | | ???? =*##?????????????????????? | | ?? """k!#??????????????????????? | | ###########????# """ ??????????????????????? | | ####??????????????# """u ??????????????????????? | | ????????????????? """ ??????????????????????? | | ???????????????? # ??"" ??????????????????????? | | ??????????????? ?????? ??????????????????????? | | ?????????????????????? ??????????????????????? | | ?????????????????????? ! ?????????????????????? | | ?????????????????????? ?????????????????????? | | ??????????????????????## ?????????????????????? | | ???????????????????????? ?????????????????????? | | ????????????????????????# ##?????????????????????? | | ????????????????????????? ???????????????????????? | | ?????????????????????????????????????????????????? | | ?????????????????????????????????????????????????? | | ?????????????????????????????????????????????????? | | ?????????????????????????????????????????????????? | | ?????????????????????????????????????????????????? | +----------------------------------------------------+ Best States ------------- Heat Dissipation 45 Energy Generation 14 Energy Capacity 250 Matter Stores 400 Matter Capacity 400 Sight Range 16 Terrain Scan Density 10 Armor Coverage 300 Propulsion Shielding 66 Evasion (%) 55 Targeting Accuracy 5 Item Schematics ----------------- Ion Engine | -9/Materials | Scanalyzed Robot Schematics ------------------ None Fabricated ------------ Nothing Alien Tech Used ----------------- None Achievements -------------- Backstab Dynamic Key First Step to Greatness Storm Trooper Uninvited Guest Challenges ------------ None Game ------ Seed ImprinterAssembledReactor Manual? 0 Play Time 00:47:27 Cumulative 0.7 hours Start 2024.04.04 @ 00:47:59 End 2024.04.04 @ 01:42:02 Sessions 1 Manual Loads 0 Difficulty Rogue Special Mode None Game No. 1 Rogue 1 Adventurer 0 Explorer 0 Win Type - Total 0 Types 0/0/0/0/0/0/0/0/0 Lore% 0 Gallery% 2 Achievement% 1 Wizard Run 0 Options --------- Layout 1 ASCII 0 Keyboard 0 Movement Arrows Keybinds 0 Fullscreen 1 Font 24/Smallcaps Map View 50x35 Zoom Use 0% Tactical HUD 0 Map Filters NONE Filters NONE Steam 1 RUN: 3364cbe1-e9a3-4687-90d8-07d2b67739a7